Cogmind - Beta 14 @@@ ROGUE MODE // 2024.08.23 @ 15:07:39 Player: thrax Result: Destroyed by G-34 Mercenary with Small Laser Performance ------------- Evolutions (1) 500 Regions Visited (4) 800 Robots Destroyed (33) 165 Value Destroyed (626) 626 Prototype IDs (0) 0 Alien Tech Used (0) 0 Bonus (0) 0 TOTAL SCORE: 2091 Bonus ------- None Cogmind --------- Core Integrity 0/400 Matter 300/300 Energy 100/100 System Corruption 0% Temperature Cool (6) Movement Core (250) Ox4 Location -9/Storage Parts ------- > --- POWER (1) -------- (None) > --- PROPULSION (4) --- (None) > --- UTILITY (2) ------ Medium Storage Unit > --- WEAPON (2) ------- Beam Rifle > --- INVENTORY (10) --- Aluminum Leg Aluminum Leg Compact Wheel Compact Wheel Medium Storage Unit Medium Laser Datajack Hammer Flail Peak State ------------ > --- POWER ------------ Ion Engine > --- PROPULSION ------- Aluminum Leg Aluminum Leg Aluminum Leg Aluminum Leg > --- UTILITY ---------- Medium Storage Unit ECM Suite > --- WEAPON ----------- Medium Laser Light Assault Rifle > --- INVENTORY -------- Medium Storage Unit Datajack Mining Laser [Rating: 9] Favorites ----------- Power Ion Engine Engine Ion Engine Propulsion Aluminum Leg Leg Aluminum Leg Wheel Compact Wheel Utility Medium Storage Unit Device Terrain Scanner Storage Medium Storage Unit Weapon Medium Laser Energy Gun Medium Laser Ballistic Gun Light Assault Rifle Launcher Grenade Launcher Special Weapon Mining Laser Impact Weapon Hammer Build | -11 -10 -10 -9 -9 ------- Run | Yrd Mat Min Mat Sto Slots Evolved 2 | . . . 2 . Power . | . . . . . Propulsion 2 | . . . 2 . Utility . | . . . . . Weapon . | . . . . . Parts Attached 46 | 6 7 13 12 8 Power 4 | 1 . 3 . . Engine 4 | 1 . 3 . . Core . | . . . . . Reactor . | . . . . . Propulsion 22 | 2 4 4 8 4 Treads . | . . . . . Leg 20 | 2 2 4 8 4 Wheel 2 | . 2 . . . Hover . | . . . . . Flight . | . . . . . Utility 6 | 1 3 . 1 1 Device 2 | . 1 . 1 . Storage 4 | 1 2 . . 1 Processor . | . . . . . Hackware . | . . . . . Protection . | . . . . . Artifact . | . . . . . Weapon 14 | 2 . 6 3 3 Energy Gun 7 | 2 . 2 1 2 Energy Cannon . | . . . . . Ballistic Gun 3 | . . 2 1 . Ballistic Cannon . | . . . . . Launcher 2 | . . 2 . . Special Weapon 1 | . . . 1 . Impact Weapon 1 | . . . . 1 Slashing Weapon . | . . . . . Piercing Weapon . | . . . . . Special Melee Weapon . | . . . . . Unidentified Prototypes . | . . . . . Parts Lost 13 | . . 5 1 7 Power 2 | . . 2 . . Propulsion 6 | . . 1 . 5 Utility 1 | . . 1 . . Weapon 4 | . . 1 1 2 Highest Loss Streak 3 | . . 3 1 3 To Critical Strikes 1 | . . . . 1 Average Slot Usage (%) 80 | . 90 81 88 63 Engine 7 | . 14 7 8 . Leg 31 | . 26 27 41 37 Device 3 | . 4 3 6 . Storage 13 | . 14 14 11 11 Energy Gun 14 | . 28 13 9 9 Ballistic Gun 7 | . . 12 9 2 Launcher 1 | . . 2 . . Peak Build Rating 9 | 6 8 8 9 8 Average Rating 6 | 4 6 6 7 6 On Entrance 5 | . 6 8 6 5 Naked Turns . | . . . . . Heaviest Build 20 | 14 20 20 20 14 Greatest Support 40 | 20 32 20 40 40 Greatest Overweight (x) 3 | . . 1 3 1 Average Overweight (x) . | . . . . . Largest Inventory Capacity 10 | 8 10 10 10 10 Average Capacity 9 | 7 9 10 10 10 Most Carried 10 | 4 10 10 5 9 Average Carried 6 | 2 8 7 4 5 Final Capacity 10 | 8 10 10 10 10 Final Carried 10 | 4 10 6 5 9 Class Distribution -------------------- 89% | Mutant 10% | Scavenger-Mutant Dominant Class ---------------- Mutant | -10/Materials Mutant | -10/Mines Mutant | -9/Materials Mutant | -9/Storage Resources | -11 -10 -10 -9 -9 ----------- Run | Yrd Mat Min Mat Sto Matter Collected 826 | 226 65 205 216 114 Remotely . | . . . . . Salvage Created 927 | . 132 427 44 324 Parts 70 | . 11 44 4 11 Haulers Intercepted . | . . . . . Recyclers Shooed . | . . . . . Parts Field Recycled . | . . . . . Retrieved Matter . | . . . . . Parts Self-Destructed . | . . . . . Prevented . | . . . . . Kills | -11 -10 -10 -9 -9 ------- Run | Yrd Mat Min Mat Sto Combat Hostiles Destroyed 22 | . 4 13 1 4 Melee 3 | . . . . 3 Guns 11 | . 3 7 1 . AOE 6 | . . 6 . . Classes Destroyed 10 | . 4 4 . 2 Worker 1 | . . 1 . . Builder 1 | . 1 . . . Tunneler 7 | . . 7 . . Recycler 3 | . . 1 . 2 Watcher 1 | . 1 . . . Swarmer 6 | . 3 3 . . Grunt 11 | . 1 7 1 2 Duelist 1 | . . . . 1 Sentry 1 | . . . . 1 Assembled 2 | . . 2 . . Best Kill Streak 13 | . 5 13 1 6 Combat Bots Only 5 | . 3 5 1 4 Max Kills in Single Turn 3 | . 2 3 1 1 Gunslinging . | . . . . . Exploded 1 | . . 1 . . Melee 1 | . . . . 1 Uniques/NPCs Destroyed 1 | . . 1 . . YI-UF0 (-10/Mines) Combat | -11 -10 -10 -9 -9 -------- Run | Yrd Mat Min Mat Sto Hostile Shots Fired 249 | . 28 76 74 71 Missed 91 | . 9 30 32 20 Damage Taken 2226 | . 174 891 502 659 Core 628 | . 56 170 183 219 Absorbed by Shields . | . . . . . Core Remaining (%) 54 | 100 . 9 . . Volleys Fired 57 | . 10 41 2 4 Largest 2 | . 2 2 2 2 Hottest 100 | . 100 100 70 96 Shots Fired 92 | . 20 60 4 8 Gun 72 | . 20 40 4 8 Cannon . | . . . . . Launcher 20 | . . 20 . . Special . | . . . . . Kinetic 21 | . . 19 2 . Thermal 51 | . 20 21 2 8 Explosive 20 | . . 20 . . Electromagnetic . | . . . . . Robot Hit Streak 8 | . 5 8 3 2 Robot Miss Streak 2 | . 2 2 1 1 Penetration Max . | . . . . . Secondary Targets 1 | . 1 . . . Max Gunslinging Chain 1 | . 1 . . . Shots Hit Robots 61 | . 14 31 2 14 Core Hits 52 | . 6 40 2 4 Critical Kills 1 | . . . . 1 Critical Parts Destroyed 2 | . . . . 2 Critical Strikes 6 | . 1 2 . 3 Burn 3 | . 1 2 . . Smash 3 | . . . . 3 Melee Attacks 9 | . . . . 9 Impact 9 | . . . . 9 Slashing . | . . . . . Piercing . | . . . . . Sneak Attacks 1 | . . . . 1 Combat Hostiles . | . . . . . Follow-up Attacks . | . . . . . Damage Inflicted 1572 | . 191 1046 31 304 Guns 550 | . 186 274 25 65 Cannons . | . . . . . Explosions 771 | . . 771 . . Melee 239 | . . . . 239 Ramming 12 | . 5 1 6 . Kinetic 99 | . . 99 . . Thermal 451 | . 186 175 25 65 Explosive 771 | . . 771 . . Electromagnetic . | . . . . . Impact 239 | . . . . 239 Slashing . | . . . . . Piercing . | . . . . . Highest Corruption . | . . . . . Average Corruption . | . . . . . Corruption Purged . | . . . . . Corruption Blocked . | . . . . . Overload Shots . | . . . . . Overflow Damage 91 | . . 3 . 88 Projectiles . | . . . . . Explosions 3 | . . 3 . . Melee 88 | . . . . 88 Knockbacks 2 | . . . . 2 Impact 2 | . . . . 2 Kinetic . | . . . . . Secondary . | . . . . . Self-Inflicted Damage 142 | . 2 140 . . Shots 8 | . . 8 . . Rammed 1 | . 1 . . . Targets Rammed 8 | . 1 1 6 . Kicked 7 | . . 1 6 . Crushed . | . . . . . Highest Temperature 201 | . 201 78 37 54 Average Temperature 48 | . 86 26 23 20 Received Heat Transfer 659 | . 18 176 180 285 Siege Activations . | . . . . . Robots Corrupted 2 | . . . . 2 Combat Hostiles 1 | . . . . 1 Parts Fried 1 | . . . . 1 Impact Corruptions 5 | . . . . 5 Robots Melted 1 | . 1 . . . Combat Hostiles 1 | . 1 . . . Parts Melted . | . . . . . Heat Transferred 1530 | . 629 666 74 161 Parts Sabotaged . | . . . . . Parts Stolen . | . . . . . Parts Stripped . | . . . . . Power Chain Reactions . | . . . . . Alert | -11 -10 -10 -9 -9 ------- Run | Yrd Mat Min Mat Sto Peak Influence 315 | . 137 315 162 208 Initial 64 | . . 53 64 63 Average 114 | . 21 165 94 131 Maximum Alert Level 1 | . . 1 . 1 Low Security (%) 85 | 100 100 71 100 89 Level 1 14 | . . 28 . 10 Level 2 . | . . . . . Level 3 . | . . . . . Level 4 . | . . . . . Level 5 . | . . . . . High Security . | . . . . . Max Security . | . . . . . Squads Dispatched 5 | . . . 4 1 Investigation 2 | . . . 2 . Extermination . | . . . . . Reinforcement 3 | . . . 2 1 Assault . | . . . . . Garrison . | . . . . . Intercept . | . . . . . Searches Triggered . | . . . . . Construction Impeded . | . . . . . Haulers Reinforced . | . . . . . Active Scanning Responses . | . . . . . Cargo Convoy Interrupts . | . . . . . Stealth | -11 -10 -10 -9 -9 --------- Run | Yrd Mat Min Mat Sto Distress Signals 5 | . . 2 3 . Communications Jammed . | . . . . . Distress Signals . | . . . . . Times Spotted 57 | . 6 23 17 11 Peak Tracking Total 12 | . 3 4 12 4 Tactical Retreats 11 | . . 6 3 2 Traps | -11 -10 -10 -9 -9 ------- Run | Yrd Mat Min Mat Sto Traps Triggered 4 | . . . 4 . Indirectly . | . . . . . Trap Hack Attempts . | . . . . . Triggered . | . . . . . Disarmed . | . . . . . Reprogrammed . | . . . . . Reused . | . . . . . Traps Extracted . | . . . . . Installed . | . . . . . Triggered . | . . . . . Machines | -11 -10 -10 -9 -9 ---------- Run | Yrd Mat Min Mat Sto Machines Disabled 1 | . . 1 . . Max in Single Turn 1 | . . 1 . . Machines Repaired . | . . . . . Machines Dismantled . | . . . . . Machines Sabotaged . | . . . . . Overloaded Fab Kills . | . . . . . Hacking | -11 -10 -10 -9 -9 --------- Run | Yrd Mat Min Mat Sto Machines Accessed 7 | . 2 . 3 2 Terminals 6 | . 1 . 3 2 Fabricators . | . . . . . Repair Stations . | . . . . . Recycling Units 1 | . 1 . . . Scanalyzers . | . . . . . Garrison Access . | . . . . . Total Hacks 22 | . 6 . 11 5 Successful 13 | . 4 . 7 2 Failed 9 | . 2 . 4 3 Catastrophic 1 | . . . . 1 Database Lockouts . | . . . . . Manual . | . . . . . Terminals 19 | . 3 . 11 5 Fabricators . | . . . . . Repair Stations . | . . . . . Recycling Units 3 | . 3 . . . Scanalyzers . | . . . . . Garrison Access . | . . . . . Terminal Hacks 11 | . 2 . 7 2 Record 2 | . . . 2 . Branch Access Points 2 | . 1 . 1 . Alert Level 1 | . . . 1 . Dispatch Records 1 | . . . 1 . Maintenance Status 1 | . . . 1 . Recall Reinforcements 1 | . . . . 1 Zone Layout 3 | . 1 . 1 1 Fabricator Hacks . | . . . . . Repair Station Hacks . | . . . . . Recycling Unit Hacks 2 | . 2 . . . Report Inventory 1 | . 1 . . . Retrieve Matter 1 | . 1 . . . Scanalyzer . | . . . . . Garrison Access Hacks . | . . . . . Unauthorized Hacks . | . . . . . Terminals . | . . . . . Fabricators . | . . . . . Repair Stations . | . . . . . Recycling Units . | . . . . . Scanalyzers . | . . . . . Garrison Access . | . . . . . Data Cores Recovered . | . . . . . Used . | . . . . . Hacking Detections 7 | . 2 . 3 2 Full Trace Events 3 | . . . 2 1 Feedback Events . | . . . . . Feedback Blocked . | . . . . . Robot Schematics Acquired . | . . . . . Robots Built . | . . . . . Authchips . | . . . . . Time . | . . . . . Total Robot Build Rating . | . . . . . Part Schematics Acquired . | . . . . . Parts Built . | . . . . . Authchips . | . . . . . Time . | . . . . . Total Part Build Rating . | . . . . . Parts Repaired . | . . . . . Time . | . . . . . Parts Recycled . | . . . . . Recycled Matter . | . . . . . Retrieved Matter . | . . . . . Retrieved Components . | . . . . . Parts Scanalyzed . | . . . . . Part Schematics Acquired . | . . . . . Parts Damaged . | . . . . . Bothacking | -11 -10 -10 -9 -9 ------------ Run | Yrd Mat Min Mat Sto Used RIF Installer . | . . . . . Robots Hacked . | . . . . . Non-combat . | . . . . . Combat . | . . . . . Robot Hacks Applied . | . . . . . Relay Couplers Released . | . . . . . Fabnet Peak Effective % . | . . . . . Robots Rewired . | . . . . . Allies Hacked . | . . . . . Hacks Repelled . | . . . . . Allies | -11 -10 -10 -9 -9 -------- Run | Yrd Mat Min Mat Sto Total Allies . | . . . . . Largest Group . | . . . . . Highest-Rated Group . | . . . . . Highest-Rated Ally . | . . . . . Total Orders . | . . . . . Ally Attacks . | . . . . . Total Damage . | . . . . . Kills . | . . . . . Allies Corrupted . | . . . . . Allies Melted . | . . . . . Intel | -11 -10 -10 -9 -9 ------- Run | Yrd Mat Min Mat Sto Robot Analysis Total . | . . . . . Derelict Logs Recovered 1 | . . 1 . . Drone Launches . | . . . . . Drone Recoveries . | . . . . . Exploration | -11 -10 -10 -9 -9 ------------- Run | Yrd Mat Min Mat Sto Turns Passed 1916 | 118 318 835 286 359 Spaces Moved 1313 | 92 218 588 192 223 Core 7 | 6 . . 1 . Treads . | . . . . . Legs 1300 | 86 212 588 191 223 Wheels 6 | . 6 . . . Hover . | . . . . . Flight . | . . . . . Fastest Speed 50 | 50 100 120 120 120 Average Speed 120 | 115 119 120 120 120 Slowest Speed 200 | 120 120 190 200 190 Overloaded Moves . | . . . . . Propulsion Burnouts . | . . . . . Robots Hopped . | . . . . . Cave-ins Triggered . | . . . . . Exploration Rate (%) 36 | 5 39 83 17 36 Regions Visited 4 Branch Regions 2 Pre-discovered Areas 2 | . . 2 . . Known Exits Taken 2 | . 1 . 1 . Unknown Exits Taken 2 | 1 . 1 . . Scrap Searched 1 | . . 1 . . Spaces Dug 16 | . . 16 . . Terrain Destroyed 112 | . . 112 . . Melee . | . . . . . Projectile . | . . . . . AOE 112 | . . 112 . . Terrain Rammed . | . . . . . Walls Destroyed . | . . . . . Machines Disabled . | . . . . . Actions | -11 -10 -10 -9 -9 --------- Run | Yrd Mat Min Mat Sto Total 1534 | 101 257 653 237 286 Wait 67 | . . 3 26 38 Move 1309 | 91 217 587 191 223 Hop . | . . . . . Pick Up 23 | 4 12 3 . 4 Fast Attach 19 | 6 3 1 6 3 Attach 7 | . . 3 3 1 Detach 2 | . 2 . . . Swap 20 | . 4 9 3 4 Drop 13 | . 8 5 . . Fire 57 | . 10 41 2 4 Melee 9 | . . . . 9 Ram 1 | . 1 . . . Kick 7 | . . 1 6 . Crush . | . . . . . Escape Stasis . | . . . . . Rewire . | . . . . . Trap . | . . . . . Miscellaneous . | . . . . . Route ------- -11/Scrapyard -10/Materials (discovered 3 exits: *Mat / *Min x2) -10/Mines -9/Materials (discovered 3 exits: Min / *Sto x2) -9/Storage History --------- Turn | Location | Event 8 | -11/Scrapyard | Discovered new exit (range 16) 119 | -11/Scrapyard | Entered Materials 283 | -10/Materials | Discovered new exit (range 11) 319 | -10/Materials | Build established: Mutant 339 | -10/Materials | Identified exit to Mines 437 | -10/Materials | Entered Mines 602 | -10/Mines | Learned location of Storage (-9) 633 | -10/Mines | Core integrity fell below 50% 635 | -10/Mines | Destroyed YI-UF0 661 | -10/Mines | Excavation squad dispatched 661 | -10/Mines | A large section of the Mines collapsed 663 | -10/Mines | Lost 3 parts (1p1n1u) 859 | -10/Mines | Learned location of Zion (-7) 911 | -10/Mines | Excavation squad dispatched 1027 | -10/Mines | Core integrity fell below 20% 1161 | -10/Mines | Excavation squad dispatched 1253 | -10/Mines | Discovered new exit (range 13) 1272 | -10/Mines | Entered Materials 1272 | -9/Materials | Evolved 2 slots: Propulsion x2 1339 | -9/Materials | Identified exit to Mines 1339 | -9/Materials | Identified exit to Storage 1558 | -9/Materials | Entered Storage 1659 | -9/Storage | Core integrity fell below 50% 1710 | -9/Storage | Core integrity fell below 20% 1917 | -9/Storage | Destroyed by G-34 Mercenary with Small Laser Last Messages --------------- 01776_ K-01 Serf collects debris. 01777_ Aluminum Leg destroyed. 01789_ K-01 Serf collects debris. 01803_ K-01 Serf cleans the Component Storage. 01852_ ALERT: Hostiles spotted, dispatching reinforcements to Terminal S002. 01859_ Connecting with Terminal... >>Recall(Reinforcements) Establishing remote squad link... Recalled reinforcement squad 2XSZQK09YT. 01875_ Aluminum Leg destroyed. 01881_ G-34 Mercenary destroyed. 01890_ Acquired Flail. 01903_ T-07 Excavator is excavating. 01913_ Critical hit (Destroy). 01913_ Sml. Laser destroyed. 01913_ Aluminum Leg destroyed. 01914_ U-05 Engineer lays Concrete. 01916_ Aluminum Leg destroyed. 01917_ U-05 Engineer lays Concrete. Map ----- +----------------------------------------------------+ | ?????????????????????????????????????????????????# | | ?????????????????????????????????????????????????# | | ?????????????????????????????????????????????????# | | ?????????????????????????????????????????????????# | | ??????????????????????????????????????##########?# | | ??????????????????????????????????????# ### | | ??????????????????????????????????????# # | | ??????????????????????????????????????# """"" # " | | ??????????????????????????????????????# "???" + " | | ??????????????????#???????????????????# "???" # " | | ??????????????????# ??????????????????# ""??" # | | ?????????????????## ???#+#??########?# "???" # | | ?????????????????# ### #### ##"T"### """"" # | | ?????????????????+ # # ### | | ?????????????????# T + """"" ##+##+###### | | ?????????????????# ### # """"" # | | ????????????????????????# # """"" # | | ?????????? ####### gr + | | ?????????? / a #############/######### | | ?????????? #######k #??????# = #?? | | ????????????????????????#k #??????# %* ##? | | ????????????????????????# u#??????# ! T#? | | ????????????????????????# #??????# = """"" ##? | | ????????????????????????# #??????# """"" #?? | | ???????????????????????## Y##?????# """"" #?? | | ???????????????????????# @ #?????# #?? | | ???????????????????????# [ #?????#############??# | | ???????????????????????# ??????????????????? | | ???????????????????????# ! # ????????????????? | | ???????????????????????##t### ??????????????? | | ???????????????????????? u ???####+??????????????# | | ????????????????????????###??????????????????????# | | ?????????????????????????????????????????????????# | | ?????????????????????????????????????????????????# | | ?????????????????????????????????????????????????# | | ?????????????????????????????????????????????????# | | ?????????????????????????????????????????????????# | | ?????????????????????????????????????????????????# | | ?????????????????????????????????????????????????# | | ?????????????????????????????????????????????????? | | ?????????????????????????????????????????????????? | | ?????????????????????????????????????????????????? | | ?????????????????????????????????????????????????? | | ?????????????????????????????????????????????????? | | ?????????????????????????????????????????????????? | | ?????????????????????????????????????????????????? | | ?????????????????????????????????????????????????? | | ?????????????????????????????????????????????????? | | ?????????????????????????????????????????????????? | | ?????????????????????????????????????????????????? | +----------------------------------------------------+ Best States ------------- Heat Dissipation 28 Energy Generation 10 Energy Capacity 250 Matter Stores 300 Matter Capacity 300 Sight Range 16 Terrain Scan Range 14 Terrain Scan Density 10 ECM Strength 1 Evasion (%) 55 Item Schematics ----------------- None Robot Schematics ------------------ None Fabricated ------------ Nothing Alien Tech Used ----------------- None Achievements -------------- None Challenges ------------ None Game ------ Seed FlightMissileChainsaw Manual? 0 Play Time 00:27:33 Cumulative 18.7 hours Start 2024.08.23 @ 12:40:27 End 2024.08.23 @ 15:07:39 Sessions 3 Manual Loads 0 Difficulty Rogue Special Mode None Game No. 19 Rogue 13 Adventurer 6 Explorer 0 Win Type - Total 0 Types 0/0/0/0/0/0/0/0/0 Lore% 14 Gallery% 22 Achievement% 25 Wizard Run 0 Options --------- Layout 0 ASCII 0 Keyboard 0 Movement Mouse Keybinds 0 Fullscreen 2 Font 36/Smallcaps Map View 76x50 Zoom Use 0% Tactical HUD 1 Map Filters NONE Filters NONE Steam 1 RUN: eb1b0192-b73b-4d44-82e5-c08d39f28f8d